[Event "Romanian Rapid Open 2022"]
[Site "Sebes"]
[Date "2022.12.02"]
[Round "2.6"]
[White "Anghel, Iulian-Mihai"]
[Black "Anton, Teodor"]
[Result "0-1"]
[ECO "C45"]
[WhiteElo "2061"]
[BlackElo "2438"]
[Annotator "TA"]
[PlyCount "80"]
[EventDate "2022.12.02"]
[EventType "rapid"]
[EventCountry "ROU"]
[SourceTitle "playchess.com"]
[Source "ChessBase"]
[SourceQuality "1"]
[TimeControl "600+5"]

{[%evp 14,80,27,24,25,24,29,14,27,12,13,6,15,0,11,0,0,-15,43,15,22,23,20,0,0,0,0,0,0,-13,-13,-12,-16,-8,-14,-101,-96,-97,-89,-93,-52,-93,-94,-111,-109,-115,-97,-93,-72,-72,-73,-154,-152,-147,-147,-152,-151,-159,-143,-214,-189,-348,-329,-275,-207,-396,-363,-330,-295]} 1. e4 {[%emt 0:00:02]} e5 {[%emt 0:00:02]} 2. Nf3 {[%emt 0:00:02]} Nc6 {[%emt 0:00:02]} 3. d4 {[%emt 0:00:02]} exd4 {[%emt 0:00:03]} 4. Nxd4 {[%emt 0:00:01]} Bc5 {[%emt 0:00:03]} 5. Nb3 {[%emt 0:00:04]} Bb6 {[%emt 0:00:02]} 6. Nc3 {[%emt 0:00:02]} Qf6 {[%emt 0:00:32]} 7. Qe2 {[%emt 0:00:32]} Nge7 {[%emt 0:00:02]} 8. Be3 {[%emt 0:00:43]} d6 {[%emt 0:00:40] now supersedes 8...0-0. C45: Scotch Game.} 9. O-O-O {[%emt 0:00:31]} Bd7 {[%emt 0:00:21]} 10. f3 {[%emt 0:01:25]} h6 {[%emt 0:00:19] The position is equal.} 11. h4 {[%emt 0:00:42]} O-O-O {[%emt 0:00:17] [#]} 12. h5 $146 {[%emt 0:00:51]} ({Predecessor:} 12. g3 Qg6 13. g4 h5 14. g5 f5 15. Bh3 Rhe8 16. Kb1 fxe4 17. Bxd7+ Rxd7 18. fxe4 {1-0 (65) Goh,W (2449)-Wong,M (2355) Kuala Lumpur 2011}) 12... g5 {[%emt 0:00:42]} 13. hxg6 {[%emt 0:00:10]} fxg6 {[%emt 0:00:15]} 14. Qd2 {[%emt 0:00:22]} (14. Rxh6 $2 {loses.} Rxh6 15. Bxh6 g5 $19) 14... g5 {[%emt 0:00:11]} 15. Bb5 {[%emt 0:01:07]} Ne5 {[%emt 0:01:45]} (15... Bxe3 $11 16. Qxe3 Kb8) 16. Bxd7+ {[%emt 0:00:09]} (16. Bxb6 {simplifies} axb6 17. Bxd7+ Rxd7 18. Qe3) 16... Rxd7 {[%emt 0:00:16]} (16... Nxd7 {simplifies} 17. Rh5 Kb8 18. Rdh1 Bxe3 19. Qxe3 a6) 17. Bxb6 {[%emt 0:00:22]} axb6 {[%emt 0:00:02]} 18. Nd5 {[%emt 0:01:08]} Nxd5 {[%emt 0:00:22]} 19. exd5 {[%emt 0:00:10]} Nc4 {[%emt 0:00:42][%csl Gc4,LRb2,LRd2][%cal Rf6b2]} 20. Qd4 {[%emt 0:00:06]} Qxd4 {[%emt 0:00:02]} 21. Nxd4 {[%emt 0:00:17]} Ne3 $40 {[%emt 0:00:08][%csl LRd1,LRd5,LRg2][%mdl 128] Black is up to no good.} 22. Rd2 {[%emt 0:00:13]} Nxd5 {[%emt 0:01:40][%cal Be3d5,Bd5f4,Bf4g2][%mdl 32]} 23. Nf5 {[%emt 0:00:04][%csl LRd5,LRh6]} Nf4 {[%emt 0:00:25]} 24. Rxh6 {[%emt 0:02:07]} (24. g3 $11 Ne6 25. Rxh6 Rxh6 26. Nxh6) 24... Rxh6 $17 {[%emt 0:00:16]} 25. Nxh6 $11 {[%emt 0:00:05][%mdl 4096] Endgame [#] KRN-KRN} Rh7 $1 {[%emt 0:00:03] Against c4} 26. Ng4 {[%emt 0:00:15]} Rh1+ {[%emt 0:00:03]} 27. Rd1 {[%emt 0:00:01]} Rxd1+ {[%emt 0:00:02]} 28. Kxd1 {[%emt 0:00:01]} Nxg2 $17 {[%emt 0:00:02] KN-KN} 29. Nf6 {[%emt 0:00:13]} Nf4 {[%emt 0:00:07]} 30. Kd2 {[%emt 0:00:32]} Kd8 {[%emt 0:00:44]} 31. Ne4 {[%emt 0:00:12]} Ne6 {[%emt 0:00:03]} 32. Ke3 {[%emt 0:00:06]} ({Better is} 32. c4) 32... d5 {[%emt 0:00:07]} 33. Nf6 {[%emt 0:00:05] [#]} c6 {[%emt 0:00:02]} 34. c3 {[%emt 0:00:05]} Ke7 {[%emt 0:00:02]} 35. Ng4 {[%emt 0:00:04]} b5 {[%emt 0:00:04]} 36. a3 {[%emt 0:00:04]} (36. Nh6 $17) 36... Kd6 {[%emt 0:00:21]} 37. Kd3 $2 {[%emt 0:00:07]} (37. Nf2) 37... Nc5+ $19 {[%emt 0:00:04]} 38. Kd2 {[%emt 0:00:06]} Ke6 {[%emt 0:00:07] aiming for ...Nd7.} 39. b4 $2 {[%emt 0:00:06]} (39. Nf2) 39... Nd7 {[%emt 0:00:02]} 40. Ne3 {[%emt 0:00:00]} Ke5 {Weighted Error Value: White=0.27 (precise) /Black=0.07 (flawless)} 0-1

[Event "Romanian Rapid Open 2022"]
[Site "Sebes"]
[Date "2022.12.02"]
[Round "2.7"]
[White "Baratosi, Daniel"]
[Black "Lupulescu, Adrian-Calin"]
[Result "1-0"]
[ECO "B02"]
[WhiteElo "2335"]
[BlackElo "1930"]
[Annotator "TA"]
[PlyCount "44"]
[EventDate "2022.12.02"]
[EventType "rapid"]
[EventCountry "ROU"]
[SourceTitle "playchess.com"]
[Source "ChessBase"]
[SourceQuality "1"]
[TimeControl "600+5"]

{[%evp 9,44,-14,25,-10,30,18,30,36,29,41,135,111,127,99,243,245,326,288,371,348,399,378,381,350,344,273,295,259,358,365,1017,1006,1178,1179,987,981,1538]} 1. e4 {[%emt 0:00:03][%cal Be2e4,Be4e5][%mdl 32]} Nf6 {[%emt 0:00:02]} 2. e5 {[%emt 0:00:05]} Nd5 {[%emt 0:00:01]} 3. Nc3 {[%emt 0:00:01]} e6 {[%emt 0:00:02]} 4. d4 {[%emt 0:00:03]} d6 {[%emt 0:00:02]} 5. f4 {[%emt 0:00:22]} Be7 {[%emt 0:00:15]} 6. Nf3 {[%emt 0:00:04] B02: Alekhine's Defence: Chase Variation and lines with early Nc3.} O-O {[%emt 0:00:05]} 7. Bd3 {[%emt 0:00:14]} Nxc3 {[%emt 0:02:43]} 8. bxc3 {[%emt 0:00:02] [#] White has an edge.} b6 $146 {[%emt 0:00:17]} ({Predecessor:} 8... f5 9. exf6 Bxf6 10. Qe2 Re8 11. h4 e5 12. fxe5 dxe5 13. dxe5 Nc6 14. Bf4 Bg4 {1-0 (25) Vlassov,N (2294)-Towers,N (1858) Chess.com INT 2022}) 9. h4 {[%emt 0:01:06][%cal Od3h7] [#] Hoping for Bxh7+!} f5 {[%emt 0:02:39]} ({Black should try} 9... Qe8 $14) 10. exf6 $16 {[%emt 0:00:31]} Rxf6 {[%emt 0:00:54]} 11. Qe2 {[%emt 0:01:33] Strongly threatening Qe4. White is more active.} Bb7 {[%emt 0:00:36] Prevents Qe4.} (11... d5 $16) 12. Ng5 $18 {[%emt 0:00:17][%csl LRe6,LRh7]} h6 {[%emt 0:00:10]} 13. Nxe6 {[%emt 0:00:05]} Qd7 {[%emt 0:00:10]} 14. f5 {[%emt 0:00:01]} Bd5 {[%emt 0:00:44]} 15. Nf4 {[%emt 0:02:07]} Bf7 {[%emt 0:00:02]} 16. O-O {[%emt 0:00:20]} Nc6 {[%emt 0:00:16]} 17. Qg4 {[%emt 0:00:43]} Rf8 {[%emt 0:01:02]} 18. Bd2 {[%emt 0:00:14]} Kh8 {[%emt 0:00:43]} 19. Rae1 {[%emt 0:00:15]} g6 $2 {[%emt 0:00:03] [#]} (19... d5 20. Qh3 Na5) 20. Ne6 {[%emt 0:00:52] White is clearly winning.} Bxe6 {[%emt 0:00:41]} 21. fxe6 {[%emt 0:00:02]} Qe8 {[%emt 0:00:04]} 22. Bxh6 {[%emt 0:00:05]} Qd8 {[%emt 0:00:24] Black got outplayed after the opening.   Weighted Error Value: White=0.18 (very precise) /Black=0.53} 1-0

[Event "Romanian Rapid Open 2022"]
[Site "Sebes"]
[Date "2022.12.02"]
[Round "2.8"]
[White "Balaban-Voia, Alexandru"]
[Black "Nevednichy, Vladislav"]
[Result "0-1"]
[ECO "A49"]
[WhiteElo "1994"]
[BlackElo "2499"]
[Annotator "TA"]
[PlyCount "116"]
[EventDate "2022.12.02"]
[EventType "rapid"]
[EventCountry "ROU"]
[SourceTitle "playchess.com"]
[Source "ChessBase"]
[SourceQuality "1"]
[TimeControl "600+5"]

{[%evp 16,115,23,-6,3,-4,-10,-28,-15,-14,-9,-13,-14,-33,-29,-72,-38,-39,-36,-27,-28,-58,-14,-9,-12,-6,-3,-14,25,-15,0,-10,-9,-25,-26,-26,-26,-60,-62,-51,-58,-82,-81,-85,-73,-69,-67,-71,-75,-77,-56,-61,-61,-62,-66,-79,-79,-79,-77,-115,-118,-113,-79,-112,-112,-112,-112,-112,-112,-142,-133,-145,-132,-141,-118,-118,-118,-118,-118,-118,-118,-130,-135,-124,-117,-132,-102,-197,-182,-173,-178,-204,-178,-215,-185,-202,-191,-358,-364,-408,-362,-29999]} 1. Nf3 {[%emt 0:00:03]} g6 {[%emt 0:00:02]} 2. g3 {[%emt 0:00:07]} Bg7 {[%emt 0:00:01]} 3. Bg2 {[%emt 0:00:02]} d6 {[%emt 0:00:02][%cal Bd7d6,Bd6d5][%mdl 32]} 4. d4 {[%emt 0:00:05]} Nf6 {[%emt 0:00:02]} 5. O-O {[%emt 0:00:40]} O-O {[%emt 0:00:01]} 6. b3 {[%emt 0:00:37]} c5 {[%emt 0:00:02]} 7. Bb2 {[%emt 0:00:08]} cxd4 {[%emt 0:00:02]} 8. Nxd4 {[%emt 0:00:05]} d5 {[%emt 0:00:01]} 9. Nf3 {[%emt 0:00:53]} Nc6 {[%emt 0:00:08] A49: 1 d4 Nf6 2 Nf3 g6 3 g3: Anti-King's Indian systems.} 10. Nbd2 {[%emt 0:00:46]} Bf5 {[%emt 0:00:13]} 11. Nh4 {[%emt 0:03:52]} Be6 {[%emt 0:00:06] [#] Black has an edge.} 12. c4 $146 {[%emt 0:01:55]} ({Predecessor:} 12. Nhf3 h6 13. e3 Rc8 14. Rc1 Qa5 15. a3 Rfd8 16. b4 Qa6 17. Nb3 Qb6 18. Nfd4 {0-1 (38) Tapia Ostolaza,A (2226)-Slizhevsky,A (2426) Chess.com INT 2020}) 12... Rc8 {[%emt 0:00:30]} 13. cxd5 {[%emt 0:00:05]} Bxd5 {[%emt 0:00:08]} 14. e4 {[%emt 0:00:36]} Be6 {[%emt 0:00:02]} 15. Qe2 {[%emt 0:00:41]} Nd4 {[%emt 0:00:08]} (15... Nb4 $5 {[%cal Rc8c2]} 16. Nc4 Qd3 $15) 16. Bxd4 {[%emt 0:00:10]} Qxd4 {[%emt 0:00:02]} 17. Nhf3 {[%emt 0:00:07]} Qb4 {[%emt 0:00:04]} 18. Rac1 {[%emt 0:00:04]} Nd7 {[%emt 0:00:07][%cal Bf6d7,Bd7c5,Bc5e6][%mdl 32]} (18... Bh6 $5 {[%cal Rc8c1]}) 19. Ng5 {[%emt 0:00:06]} Nc5 {[%emt 0:00:17]} 20. Nxe6 {[%emt 0:00:02]} (20. Rfd1 {is more complex.} Bd7 21. e5 Bf5 22. Nf1) 20... Nxe6 {[%emt 0:00:02]} 21. Nf3 {[%emt 0:00:13]} Qa3 {[%emt 0:00:07]} 22. Rc2 {[%emt 0:00:04]} Rc5 {[%emt 0:00:08]} 23. Rxc5 {[%emt 0:00:14]} Qxc5 {[%emt 0:00:02]} 24. Bh3 {[%emt 0:00:03]} Nd4 {[%emt 0:00:09]} 25. Nxd4 {[%emt 0:00:01]} Bxd4 {[%emt 0:00:01]} 26. Qc4 {[%emt 0:00:08]} Qxc4 {[%emt 0:00:03]} 27. bxc4 $15 {[%emt 0:00:01][%mdl 4096] Endgame KRB-KRB} Rd8 {[%emt 0:00:02]} 28. Re1 {[%emt 0:00:14]} Bc5 {[%emt 0:00:02] aiming for ...Rd2.} 29. Re2 {[%emt 0:00:02] Prevents Rd2.} Rd4 {[%emt 0:00:03]} 30. Bc8 {[%emt 0:00:04]} b6 {[%emt 0:00:13]} ({Reject} 30... Rxc4 $6 31. Bxb7 g5 32. Ba6 $11) 31. Ba6 {[%emt 0:00:02]} g5 {[%emt 0:00:06]} 32. Kg2 {[%emt 0:00:02]} g4 {[%emt 0:00:02]} 33. h3 {[%emt 0:00:05]} h5 {[%emt 0:00:00][%cal Bh7h5,Bh5g4,Bg4f3][%mdl 32]} 34. hxg4 {[%emt 0:00:06]} hxg4 {[%emt 0:00:01]} 35. Bc8 {[%emt 0:00:08]} e6 {[%emt 0:00:02]} ({Much worse is} 35... Rxc4 $6 36. Bxg4 Kf8 37. Bd7 $11) 36. Ba6 {[%emt 0:00:03]} Kg7 {[%emt 0:00:02]} 37. f3 {[%emt 0:00:08] [#]} gxf3+ $1 {[%emt 0:00:01]} 38. Kxf3 {[%emt 0:00:01]} Kf6 {[%emt 0:00:04]} 39. Kf4 {[%emt 0:00:10]} Bd6+ {[%emt 0:00:08]} 40. Kf3 {[%emt 0:00:08]} Ke5 {[%emt 0:00:03]} 41. Bb5 {[%emt 0:00:07]} Bc5 {[%emt 0:00:01]} 42. a4 {[%emt 0:00:05]} Rd3+ {[%emt 0:00:04]} 43. Kg2 {[%emt 0:00:12]} Rc3 {[%emt 0:00:01]} 44. Ba6 {[%emt 0:00:10]} Bd6 {[%emt 0:00:03]} 45. Bb5 {[%emt 0:00:04]} f6 {[%emt 0:00:05]} 46. Rf2 {[%emt 0:00:04]} Bc5 {[%emt 0:00:05]} ({Not} 46... Kxe4 47. Rxf6 Rxg3+ 48. Kf2 $15) 47. Rf4 {[%emt 0:00:06]} Be3 {[%emt 0:00:06] Black is more active.} 48. Rh4 {[%emt 0:00:03]} a5 {[%emt 0:00:10]} 49. Ba6 {[%emt 0:00:04]} Bg5 {[%emt 0:00:04]} 50. Rh7 {[%emt 0:00:09]} Kxe4 {[%emt 0:00:04]} 51. Rb7 {[%emt 0:00:05]} (51. Re7 $17) 51... Be3 {[%emt 0:00:05]} 52. Rf7 {[%emt 0:00:03]} Ke5 {[%emt 0:00:03]} 53. Bb5 {[%emt 0:00:06]} Bc5 {[%emt 0:00:04]} 54. Rh7 {[%emt 0:00:05]} Rd3 {[%emt 0:00:04]} 55. Rh8 {[%emt 0:00:07]} f5 {[%emt 0:00:02]} 56. Re8 $2 {[%emt 0:00:02]} (56. Rh2) 56... Kf6 $19 {[%emt 0:00:05]} 57. Rh8 {[%emt 0:00:06]} Rd2+ {[%emt 0:00:05]} 58. Kf3 $2 {[%emt 0:00:04] [#]} (58. Kh1 $19) 58... Rf2# {[%emt 0:00:02] Weighted Error Value: White=0.30/Black=0.08 (flawless)} 0-1

[Event "Romanian Rapid Open 2022"]
[Site "Sebes"]
[Date "2022.12.02"]
[Round "2.9"]
[White "Berescu, Alin-Mile"]
[Black "Arandjelovic, Aleksandar Z"]
[Result "1/2-1/2"]
[ECO "B23"]
[WhiteElo "2429"]
[BlackElo "1899"]
[Annotator "TA"]
[PlyCount "74"]
[EventDate "2022.12.02"]
[EventType "rapid"]
[EventCountry "ROU"]
[SourceTitle "playchess.com"]
[Source "ChessBase"]
[SourceQuality "1"]
[TimeControl "600+5"]

{[%evp 17,74,-10,-9,-20,-26,-81,-33,-66,-53,-57,-54,-45,-57,-70,-66,-75,-71,-83,-43,-37,-36,-56,-28,-61,-54,-97,-96,-102,-98,-161,-137,-493,-121,-178,-43,-38,-38,-38,-38,-38,-38,-49,-49,-49,-49,-172,-170,-160,-129,-116,-116,-118,-73,-83,-25,-25,0,0,0]} 1. e4 {[%emt 0:00:03]} c5 {[%emt 0:00:01]} 2. Nc3 {[%emt 0:00:04]} Nc6 {[%emt 0:00:02]} 3. f4 {[%emt 0:00:05]} g6 {[%emt 0:00:31]} 4. Nf3 {[%emt 0:00:10]} Bg7 {[%emt 0:00:02]} 5. Bb5 {[%emt 0:00:37]} Nd4 {[%emt 0:00:04]} 6. O-O {[%emt 0:00:07]} a6 {[%emt 0:00:02]} 7. Bd3 {[%emt 0:00:24]} d6 {[%emt 0:00:01]} 8. Nxd4 {[%emt 0:00:12]} cxd4 {[%emt 0:00:02]} 9. Ne2 {[%emt 0:00:02]} Nf6 {[%emt 0:00:58]} 10. Qe1 {[%emt 0:00:46] B23: Closed Sicilian: Lines without g3.} O-O {[%emt 0:00:23]} 11. Kh1 {[%emt 0:00:23]} (11. c3 $11 {keeps the balance.}) 11... Nd7 {[%emt 0:00:27] [#]} ({Better is} 11... e5 $17) 12. Bc4 $146 {[%emt 0:01:01] Black is slightly better.} ({Predecessor:} 12. Qf2 e5 13. f5 Nc5 14. g4 Nxd3 15. cxd3 Bf6 16. b3 Bd7 17. a4 b5 18. Ba3 {0-1 (33) Halt,D (2096)-Schaefer,M (2166) Germany 2016}) 12... e6 {[%emt 0:00:13]} 13. d3 {[%emt 0:00:41]} b5 {[%emt 0:00:31]} 14. Bb3 {[%emt 0:00:01]} Nc5 $1 {[%emt 0:00:05]} 15. Qf2 {[%emt 0:00:19]} a5 {[%emt 0:00:33] [#] Strongly threatening ...a4.} 16. a3 $1 {[%emt 0:00:27]} Nxb3 {[%emt 0:00:06]} 17. cxb3 {[%emt 0:00:01]} Qb6 {[%emt 0:00:03]} 18. Bd2 {[%emt 0:00:20]} f5 $36 {[%emt 0:00:18][%mdl 2048] Black is pushing.} 19. exf5 {[%emt 0:00:45]} gxf5 {[%emt 0:00:02]} 20. b4 {[%emt 0:00:55]} a4 {[%emt 0:00:06]} 21. Qh4 {[%emt 0:00:46]} Bb7 {[%emt 0:00:19]} 22. Rac1 {[%emt 0:00:02]} Bd5 {[%emt 0:00:24]} 23. Ng3 {[%emt 0:00:09]} (23. Ng1 $17) 23... Qb7 $19 {[%emt 0:00:10]} 24. Qh3 {[%emt 0:00:04][%mdl 8192] [#]} (24. Rf2 $17 {was the crucial defense.}) 24... Rac8 $2 {[%emt 0:00:22]} (24... Rf6 $1 $19 {and Black stays clearly on top.} 25. Qh5 Bxg2+ 26. Kg1 Bxf1 27. Kxf1 Rh6) 25. Nh5 {[%emt 0:00:33]} (25. Kg1 $17) 25... Rf7 {[%emt 0:00:09]} (25... Rxc1 $19 26. Rxc1 Bh8) 26. Rxc8+ $15 {[%emt 0:00:10]} Qxc8 {[%emt 0:00:01]} 27. Rc1 {[%emt 0:00:02] Inhibits Qc2.} Rc7 {[%emt 0:00:17]} 28. Rxc7 {[%emt 0:00:14]} Qxc7 {[%emt 0:00:02]} 29. Qg3 {[%emt 0:00:01]} Qf7 {[%emt 0:00:08]} (29... Kf8 {feels hotter.} 30. Qh4 Bh8 31. Nf6 Bxg2+ 32. Kg1 Bc6) 30. Nxg7 {[%emt 0:00:08]} Qxg7 {[%emt 0:00:01]} 31. Qxg7+ {[%emt 0:00:03]} ({White should play} 31. Qh3 $15) 31... Kxg7 {[%emt 0:00:02][%mdl 4096] Endgame KB-KB} 32. Kg1 {[%emt 0:00:12]} e5 {[%emt 0:00:13][%cal Be6e5,Be5e4,Be4e3][%mdl 32]} 33. Kf1 {[%emt 0:00:02]} e4 {[%emt 0:00:06]} 34. Be1 {[%emt 0:00:06]} Kf7 {[%emt 0:00:20]} 35. Bh4 {[%emt 0:00:03]} Bb3 {[%emt 0:00:13]} (35... exd3 $17 {[%cal Od5g2]} 36. Ke1 Bxg2) 36. Bf2 $11 {[%emt 0:00:09]} e3 {[%emt 0:01:29]} 37. Bh4 {[%emt 0:00:02]} Bd1 {[%emt 0:00:11] Weighted Error Value: White=0.41/Black=0.48} (37... Bc2 $5 38. Ke2 $8 h6 $11) 1/2-1/2

[Event "Romanian Rapid Open 2022"]
[Site "Sebes"]
[Date "2022.12.02"]
[Round "2.10"]
[White "Craciun, Sasha-Matei"]
[Black "Dragomirescu, Robin-Alexandru"]
[Result "0-1"]
[ECO "B00"]
[WhiteElo "2001"]
[BlackElo "2337"]
[Annotator "TA"]
[PlyCount "86"]
[EventDate "2022.12.02"]
[EventType "rapid"]
[EventCountry "ROU"]
[SourceTitle "playchess.com"]
[Source "ChessBase"]
[SourceQuality "1"]
[TimeControl "600+5"]

{[%evp 9,86,-10,-8,-74,-71,-149,-145,-140,-151,-147,-56,-141,-142,-143,-139,-125,-124,-183,-185,-173,-181,-182,-166,-218,-214,-277,-268,-278,-270,-354,-288,-265,-273,-266,-267,-286,-287,-326,-323,-349,-353,-372,-372,-452,-439,-591,-579,-602,-419,-471,-450,-466,-425,-428,-394,-873,-877,-864,-845,-881,-895,-1089,-944,-960,-609,-807,-801,-1035,-1019,-959,-907,-887,-876,-1877,-1766,-1674,-1574,-1320,-1149]} 1. e4 {[%emt 0:00:02]} Nc6 {[%emt 0:00:03]} 2. d4 {[%emt 0:00:35]} e5 {[%emt 0:00:10]} 3. dxe5 {[%emt 0:00:35]} Nxe5 {[%emt 0:00:06]} 4. Be3 {[%emt 0:00:07]} Nf6 {[%emt 0:01:19]} 5. Nc3 {[%emt 0:01:24]} Bb4 {[%emt 0:00:05]} 6. Bd3 {[%emt 0:01:08] B00: Queen's Fianchetto Defence, Nimzowitsch Defence.} (6. Nf3 $11 {keeps the balance.} Qe7 7. Bd3) 6... d5 $17 {[%emt 0:00:32] [#]} 7. exd5 $146 {[%emt 0:00:34]} (7. Nge2 $142) ({Predecessor:} 7. Nge2 dxe4 8. Bb5+ Bd7 9. Qd4 Qe7 10. O-O-O c6 11. Ba4 b5 12. Bb3 c5 13. Qd6 Qxd6 14. Rxd6 {0-1 (29) Dorst,K (1602)-Merettig,G (1692) Bad Bevensen 2010}) 7... Qxd5 {[%emt 0:00:36]} ({And not} 7... Nxd5 8. Bd4 Nxd3+ 9. Qxd3 $15) 8. Nf3 {[%emt 0:02:14] Black is clearly better.} Bg4 {[%emt 0:00:37] Black is more active.} 9. Be2 {[%emt 0:00:53]} Nxf3+ {[%emt 0:00:55]} (9... Bxf3 $17 10. Bxf3 Nxf3+ 11. Qxf3 Ne4) 10. Bxf3 {[%emt 0:00:23]} ({Better is} 10. gxf3 $15 Bf5 11. Qxd5 Nxd5 12. O-O-O Nxc3 13. bxc3 Bxc3 14. Rd5) 10... Bxf3 {[%emt 0:00:17]} 11. Qxf3 {[%emt 0:00:03]} Qxf3 {[%emt 0:00:03]} 12. gxf3 {[%emt 0:00:01]} O-O-O {[%emt 0:00:26]} 13. O-O {[%emt 0:00:39]} (13. a3 $17 {might work better.} Bxc3+ 14. bxc3) 13... Bxc3 $19 {[%emt 0:00:46]} 14. bxc3 {[%emt 0:00:01]} Nd5 {[%emt 0:00:24]} 15. Bd4 {[%emt 0:00:30]} b6 {[%emt 0:00:24]} 16. Rad1 {[%emt 0:00:45]} (16. Kh1 $142) 16... c5 {[%emt 0:00:06]} 17. Be5 {[%emt 0:00:08]} f6 {[%emt 0:00:43]} 18. c4 {[%emt 0:00:05]} Nb4 {[%emt 0:00:04]} 19. c3 {[%emt 0:00:46]} Nxa2 {[%emt 0:02:18]} 20. Ra1 {[%emt 0:00:00]} fxe5 {[%emt 0:00:36]} 21. Rxa2 {[%emt 0:00:01][%mdl 4096] Endgame KRR-KRR} Rd7 {[%emt 0:00:05]} 22. Re1 {[%emt 0:00:01]} Rf8 {[%emt 0:00:08]} 23. Rxe5 {[%emt 0:00:07]} Rxf3 {[%emt 0:00:04]} 24. Rc2 {[%emt 0:00:43]} Rf4 {[%emt 0:00:06]} 25. Re8+ {[%emt 0:00:07]} Kb7 {[%emt 0:00:20]} 26. Rh8 {[%emt 0:00:01]} h6 {[%emt 0:00:05]} (26... Rxc4 $2 {loses.} 27. Rxh7 b5 28. Rb2 $19) 27. Re2 {[%emt 0:00:01]} Rxc4 {[%emt 0:00:03]} 28. Re3 {[%emt 0:00:02]} Rf4 {[%emt 0:00:13]} 29. Rg8 {[%emt 0:00:11]} Kc6 {[%emt 0:00:26]} 30. Rg3 {[%emt 0:00:15]} Rd1+ {[%emt 0:00:20]} 31. Kg2 {[%emt 0:00:00]} Rd2 {[%emt 0:00:01]} ({Don't blunder} 31... g5 $2 32. Rf3 $19) 32. Rf3 $2 {[%emt 0:00:03] [#]} (32. R8xg7 Rfxf2+ 33. Kg1) 32... Rxf3 {Black is clearly winning.} 33. Kxf3 {[%emt 0:00:00] KR-KR} Rd7 {[%emt 0:00:06]} 34. c4 {[%emt 0:00:05]} a6 {[%emt 0:00:10] And now ...b5 would win.} 35. Ke3 {[%emt 0:00:17]} b5 {[%emt 0:00:02]} 36. Rc8+ {[%emt 0:00:02]} Rc7 {[%emt 0:00:03]} 37. Ra8 {[%emt 0:00:03]} Kb7 {[%emt 0:00:04]} 38. Re8 {[%emt 0:00:02]} Rd7 {[%emt 0:00:07]} 39. Re5 {[%emt 0:00:03]} Kb6 {[%emt 0:00:02]} 40. Re6+ {[%emt 0:00:04]} Ka5 {[%emt 0:00:02]} 41. Rc6 {[%emt 0:00:02]} bxc4 {[%emt 0:00:11]} 42. Rxc5+ {[%emt 0:00:01]} Kb4 {[%emt 0:00:01]} 43. Rc6 {[%emt 0:00:01]} a5 {[%emt 0:00:02] Weighted Error Value: White=0.67/Black=0.22 (precise)} 0-1

[Event "Romanian Rapid Open 2022"]
[Site "Sebes"]
[Date "2022.12.02"]
[Round "2.11"]
[White "Bulmaga, Irina"]
[Black "Ambru, Dan-Calin"]
[Result "1-0"]
[ECO "B30"]
[WhiteElo "2426"]
[BlackElo "1957"]
[Annotator "TA"]
[PlyCount "33"]
[EventDate "2022.12.02"]
[EventType "rapid"]
[EventCountry "ROU"]
[SourceTitle "playchess.com"]
[Source "ChessBase"]
[SourceQuality "1"]
[TimeControl "600+5"]

{[%evp 13,33,31,16,11,60,52,145,74,83,85,127,129,122,129,120,127,432,427,381,369,2220,2183]} 1. e4 {[%emt 0:00:02][%cal Be2e4,Be4e5][%mdl 32]} c5 {[%emt 0:00:06]} 2. Nf3 {[%emt 0:00:03][%cal Bg1f3,Bf3g5,Bg5e4][%mdl 32]} Nc6 {[%emt 0:00:01]} 3. Nc3 {[%emt 0:00:02]} Nf6 {[%emt 0:00:03]} 4. Bb5 {[%emt 0:00:10]} Nd4 {[%emt 0:00:13]} 5. e5 {[%emt 0:00:07]} Nxb5 {[%emt 0:00:28]} 6. Nxb5 {[%emt 0:00:03]} Nd5 {[%emt 0:00:03]} 7. Ng5 {[%emt 0:00:05]} f6 {[%emt 0:02:35] 7...f6 scores better than 7...f5.} 8. Ne4 {[%emt 0:00:08] B30: Sicilian: 2...Nc6 3 Bb5, lines without ...g6.} a6 {[%emt 0:01:04]} (8... f5 $11 {feels stronger.} 9. Nec3 (9. Nxc5 $2 {loses.} Qb6 $19) 9... Nxc3 10. Nxc3 (10. dxc3 a6 $11) 10... d6) 9. Nbc3 $14 {[%emt 0:00:59]} e6 {[%emt 0:01:05] [#]} (9... Nxc3 $14 10. dxc3 Qc7) 10. O-O $146 {[%emt 0:00:54] White is more active.} ({Better is} 10. Nxd5 exd5 11. exf6) ({Predecessor:} 10. Qh5+ g6 11. Qf3 fxe5 12. Nxd5 exd5 13. Nf6+ Kf7 14. Nxd5+ Kg7 15. h4 h5 16. d4 {1-0 (29) Nakamura,H (2466)-Mafra,K (2071) La Paz 2002}) 10... f5 $16 {[%emt 0:01:07]} 11. Nxd5 {[%emt 0:00:17]} exd5 {[%emt 0:00:08]} 12. Nd6+ {[%emt 0:00:17]} Bxd6 {[%emt 0:00:09]} 13. exd6 {[%emt 0:00:03] [#] And now Re1+ would win.} O-O {[%emt 0:00:04]} 14. Qf3 {[%emt 0:00:15]} Qb6 $2 {[%emt 0:01:43][%mdl 8192]} (14... Qf6 $16 {is tougher.}) 15. Qxd5+ $18 {[%emt 0:00:04]} Kh8 {[%emt 0:00:01]} 16. Re1 {[%emt 0:00:17] Hoping for b3.} Qc6 $2 {[%emt 0:00:32] [#] Prevents b3.} (16... Qd8 17. Re7 Re8 18. Qxc5 (18. Qxf5 Rxe7 19. dxe7 Qxe7 $14) 18... b5) 17. Qf7 $3 {[%emt 0:00:19][%mdl 512] Weighted Error Value: White=0.17 (very precise) /Black=0.82} 1-0